Workbook

Sheet Instructions
A1: Instructions for the Subscriber Organization / Subscriber Coordinator Application for Authorization to Participate in the Community Solar Energy Generating System (“CSEGS”) Pilot Program | J1: Bonding Examples
J2: Note: Bonding amount is for the sum of total capacity of all projects. Total capacity must be rounded up to the nearest whole MW to arrive at bonding amount.
A3: 1. Please file separate applications for Subscriber Organization and Subscription Coordinator.
A4: 2. Please fill in all fields highlighted in YELLOW on the tab labeled "Application." | K4: Bonding for Type A and D | O4: Bonding for Type B and C
A5: 3. Complete all the forms on the tabs labeled "Affidavit of General Compliance," "Verification," and "Bond," by filling in the blank underlined spaces or editing and replacing the bold text before printing and signing. Be sure to fill out the appropriate bond form for your application. | K5: Total MWs | L5: Bond Amount | O5: Total MWs | P5: Bond Amount
K6: 1 | L6: 10000 | O6: 1 | P6: 0
K7: 2 | L7: =L6+25000 -> 35000 | O7: =O6+1 -> 2 | P7: =P6+25000 -> 25000
A8: 4. Complete all applicable Attachments. | K8: 3 | L8: =L7+25000 -> 60000 | O8: =O7+1 -> 3 | P8: =P7+25000 -> 50000
A9: a) For Attachment B, make sure "content" is enabled, type the number of projects being applied for in the YELLOW cell and click "Set Up Sheet." | K9: 4 | L9: =L8+25000 -> 85000 | O9: =O8+1 -> 4 | P9: =P8+25000 -> 75000
K10: 5 | L10: 110000 | O10: 5 | P10: 100000
A11: 5. Save the completed application form to your computer drive as "[Company Name] CSEGS Application." | K11: 6 | L11: =L10+25000 -> 135000 | O11: =O10+1 -> 6 | P11: =P10+25000 -> 125000
K12: 7 | L12: 160000 | O12: 7 | P12: 150000
A13: 6. Email an electronic copy of the document in Excel format to eap.division@maryland.gov. | K13: 8 | L13: 185000 | O13: 8 | P13: 175000
A14: 7. Print, sign, and file with the Commission a signed/verified original application, affidavit, verification, bond, and any attachments. DO NOT INCLUDE INSTRUCTIONS TAB WHEN FILING | K14: 9 | L14: =L13+25000 -> 210000 | O14: =O13+1 -> 9 | P14: =P13+25000 -> 200000
K15: 10 | L15: 235000 | O15: 10 | P15: 225000
A16: 8. To file an Application with the Maryland Public Service Commission: | K16: 11 | L16: =L15+25000 -> 260000 | O16: =O15+1 -> 11 | P16: =P15+25000 -> 250000
A17: a) E-file a PDF version of the file, e-file can be found at the following web address: | K17: 12 | L17: =L16+25000 -> 285000 | O17: =O16+1 -> 12 | P17: =P16+25000 -> 275000
A18: https://webapp.psc.state.md.us/newIntranet/efile_new/efilelogin_new.cfm | K18: 13 | L18: 310000 | O18: 13 | P18: 300000
A19: b) When saving as a PDF please be sure to click options in the "save as" window and check entire workbook | K19: 14 | L19: 335000 | O19: 14 | P19: 325000
K20: 15 | L20: 360000 | O20: 15 | P20: 350000
A21: c) For Paper filing requirements please check the Commission’s website for Requirements for Official Filings | K21: 16 | L21: 385000 | O21: 16 | P21: 375000
K22: 17 | L22: 410000 | O22: 17 | P22: 400000
A23: d) Mail to the address below, the original bond | K23: 18 | L23: 435000 | O23: 18 | P23: 425000
A24: e) Mail to the address below, the Application fee of $400 for Type A or D or $50 for Type B or C. (payable to “Public Service Commission of Maryland”) | K24: 19 | L24: =L23+25000 -> 460000 | O24: =O23+1 -> 19 | P24: =P23+25000 -> 450000
A25: Mail the original bond and application fee to: | K25: 20 | L25: =L24+25000 -> 485000 | O25: =O24+1 -> 20 | P25: =P24+25000 -> 475000
A26: Andrew S. Johnston | K26: 21 | L26: 510000 | O26: 21 | P26: 500000
A27: Executive Secretary | K27: 22 | L27: =L26+25000 -> 535000 | O27: =O26+1 -> 22 | P27: =P26+25000 -> 525000
A28: Maryland Public Service Commission | K28: 23 | L28: 560000 | O28: 23 | P28: 550000
A29: 6 Saint Paul St. | K29: 24 | L29: 585000 | O29: 24 | P29: 575000
A30: Baltimore, MD 21202 | K30: 25 | L30: 610000 | O30: 25 | P30: 600000
K31: 26 | L31: 635000 | O31: 26 | P31: 625000
A32: For all amendments or supplemental filings, please include a cover letter and only the relevant pages. | K32: 27 | L32: 660000 | O32: 27 | P32: 650000
K33: 28 | L33: 685000 | O33: 28 | P33: 675000
A34: Concurrently with the filing of the Application with the Executive Secretary, a paper copy of the Application shall be submitted to the Office of People’s Counsel, 6 St. Paul St., 21st Floor, Baltimore, MD 21202. | K34: 29 | L34: 710000 | O34: 29 | P34: 700000
K35: 30 | L35: 735000 | O35: 30 | P35: 725000
K36: 31 | L36: 760000 | O36: 31 | P36: 750000
K37: 32 | L37: 785000 | O37: 32 | P37: 775000
A38: Questions pertaining to completion of this Application may be directed to the Public Service Commission Staff, Energy Analysis and Planning Division, at the above address or you may call the Division at (410) 767-8085. | K38: 33 | L38: 810000 | O38: 33 | P38: 800000
K39: 34 | L39: 835000 | O39: 34 | P39: 825000
K40: 35 | L40: 860000 | O40: 35 | P40: 850000
K41: 36 | L41: 885000 | O41: 36 | P41: 875000
A42: Effective August 1, 2022 | H42: Version 1.0 | K42: 37 | L42: 910000 | O42: 37 | P42: 900000
K43: 38 | L43: 935000 | O43: 38 | P43: 925000
K44: 39 | L44: 960000 | O44: 39 | P44: 950000
K45: 40 | L45: 985000 | O45: 40 | P45: 975000
K46: 41 | L46: 1010000 | O46: 41 | P46: 1000000

Sheet Application
A1: Subscriber Organization / Subscriber Coordinator Application for Authorization to Participate in the Community Solar Energy Generating System (“CSEGS”) Pilot Program
A3: 1. Identity of the Applicant
A4: Legal Name:
A5: Current Address:
A6: City, State, Zip
A7: Street Address (if different than above):
A8: 2. Subscriber Organization Type
A9: Select only one.
A10: Type A. Proposed Owner and/or Operator of Community Solar Energy Generating System(s) Authorization requires a Subscriber Organization Bond. See "Instructions" tab. The bond amount is $10,000 plus $25,000 per each MW of program capacity in excess of 1MW for which the Applicant seeks to apply. Application Fee is $400.
A14: Type B. Proposed Collective Group of Subscribers of a (single) Community Solar Energy Generating System. Complete Attachment C. A bond is not required for program participation of 1MW or less. The bond amount is $25,000 per each MW of program capacity in excess of 1MW for which the Applicant seeks to apply. See "Instructions" tab. Application Fee is $50.
A18: Type C. Proposed Non-profit Owner and/or Operator of Community Solar Energy Generating System(s) Authorization requires a Subscriber Organization Bond if program capacity requested exceeds 1MW. See "Instructions" tab. The bond amount is $25,000 per each MW of program capacity in excess of 1MW for which the Applicant seeks to apply. Application Fee is $50.
A22: Type D. Subscription Coordinator requires a Subscriber Organization Bond. Complete Attachment D. See "Instructions" tab. The bond amount is $10,000 plus $25,000 per each MW of program capacity in excess of 1MW for which the Applicant seeks to apply. Application Fee is $400.
A25: Note: Bonding amount is for the sum of total capacity of all projects. Total capacity must be rounded up to the nearest whole MW to arrive at bonding amount.
A27: 3. Complete Attachment B for each facility that the Applicant plans to apply for capacity in the Pilot Program.
A29: Please attach the SDAT Propery tax information for each project.
A30: Note: If applying for the SBO category, provide proof of qualifications for each project.
A31: 4. Applicant Operations:
A32: Identify the functions that the Applicant will undertake on its own behalf, and those that it expects to either partner with others to provide or contract to others. Check all that apply.
B34: Subscriber Coordinator | C34: Owner
A35: Develop
A36: Finance
A37: Build
A38: Own Solicit Subscribers
A39: Operate CSEGS*
A40: Manage Subscriptions*
A42: * “Operate CSEGS” means to operate and maintain the CSEGS facility; “Manage Subscriptions” means maintaining the ongoing subscriber relationships, customer service to subscribers, and data interface with utilities on subscriptions.
A46: 4. Applicant Operations (Cont.)
A47: Subscriber Type (Check all thay apply):
A48: Commercial and Industrial
A49: Residential
A50: Low and Moderate Income
A52: Service Territory Applicant intends to operate (Check all that apply):
A53: Baltimore Gas & Electric ("BGE")
A54: Delmarva Power & Light Company ("DPL")
A55: Potomac Edison Company ("PE")
A56: Potomac Electric Power Company ("Pepco")
A58: Number of CSEGS Applicant intends to operate (Check one):
A59: Note: Check the box for “Single CSEGS” if Applicant is a special purpose entity organized to legally own a single CSEGS.
A61: Single CSEGS
A62: Multiple CSEGS
A64: Identify whether Applicant will accept either or both of the following:
A65: Security Deposits (as defined in COMAR Regulations 20.62.01.02)
A66: Prepaid Subscription Fees (as defined in COMAR Regulations 20.62.05.11)
A68: Affilates:
A69: Note: "Affilate" means a person, subsidiary group, or company attached or connected to the Applicant in any way. This includes other Subscriber Organizations/Subscription Coordinators with whom the Applicant has any relationship.
A72: Applicant has no affiliated approved Subscriber Organizations/Subscription Coordinators
A73: See Attachment A
A74: 5. Regulatory Contact:
A75: Name and Title:
A76: Address:
A77: City, State, Zip
A78: Telephone:
A79: Fax:
A80: Email:
A81: 6. Primary Corporate Officers/General Partners/Managing Partners (if applicable)
A82: President/General Partner/Managing Partner:
A83: Name:
A84: Business Address:
A85: City, State, Zip
A86: CEO
A87: Name:
A88: Business Address:
A89: City, State, Zip
A90: 7. Applican't Business Form (if applicable):
A91: Proprietorship | B91: Limited Partnership
A92: Corporation | B92: Limited Liability Company
A93: Partnership | B93: Limited Liability Partnership
A94: Other:
A95: 8. Actions Against Applicant:
A96: Actions such as Suspensions/Revocations, Limitations, Reprimands, Fines, Consent Decrees, or other similar actions have been taken or are pending against the Applicant. If checked, provide an attachment describing the action; and include docket numbers, offense dates, and case numbers, if applicable.
A99: No such action has been taken.
A100: 9. Technical and Managerial Competency: The Applicant must submit, in an attachment, a statement of technical and managerial competency. The attachment should also include a description of the Applicant and current U.S. operations, intended operations in Maryland, past work experience relevant to the community solar pilot program, general plans for partnering or contracting pilot program functions, and other items or information that demonstrate technical and managerial competency. Finally, list all states where applicant has built or operates a community solar installation at the time of this application.
A106: 10. Training and Marketing Materials: The Applicant must provide copies of the training materials offered to the Applicant’s sales personnel/representatives; as well as the marketing materials that the Applicant will use to advertise to Maryland customers. If training material or marketing material is not available at the time of application, provide such material before commencing business in the state.
A110: 11. Business Relationship: Description, in an attachment, of business relationship between Subscriber Organization and Subscriber Coordinators.
A112: 12. Affilated Applications: List the name of each company or entity which is affiliated with the applicant, if that company or entity has separately applied for, or intends to apply for, admission to the Maryland CSEGS Program as a Subscriber Organization. Describe the nature of each affiliation.
A115: Applicant has no affiliated applications
A116: Yes, describe below
A118: 12. Application Fee: The Applicant must enclose the required application fee of $400 (Types A and D) or $50 (Types B and C)
A121: Applicant Name:
A122: Signature:
A124: Print Name:
A125: Title:
A126: Date:

Sheet Affidavit of General Compliance

Sheet Verification

Sheet Bond

Sheet Attachment A
A1: Subscriber Organization / Subscriber Coordinator Application for Authorization to Participate in the Community Solar Energy Generating System (“CSEGS”) Pilot Program
A3: Attachment A: Affilate Information
A4: Subscriber Organization/Subscription Coordinator Name | B4: Subscriber Organization/Subscription Coordinator Number
A43: (Applicant should attach additional pages for affilate list as needed)

Sheet Attachment B
A1: Subscriber Organization / Subscriber Coordinator Application for Authorization to Participate in the Community Solar Energy Generating System (“CSEGS”) Pilot Program
A2: Attachment B: Planned Project Information
A3: Number of Projects | B3: 4
A4: Project Name/ID
A5: Project Address
A6: City
A7: Zip
A8: Map and Parcel Number
A9: Total Project Capacity in kW A/C
A10: Pilot Program Category | B10: Select One
A11: Utility Service Territory
A12: Local Governement Jurisdiction
A13: Mounting Type
A14: Expected Total Number of Subscribers
A15: Expected Number of Residential Subscribers
A16: Expected Number of Commercial Subscribers
A17: Expected Number of Industrial > 600 kW demand Subscribers
A18: % of LMI Subscribers
A19: % Low Income Subscribers
A20: Appliant intends to:
A21: Deposits will be required of customers
A22: Own the facility
A23: Operate the facility
A24: Collectively control the facility as a group of subscribers
A25: Convert an existing facility that it will own or operate
A26: Convert an existing facility that it will control as a group of subscribers
A27: Develop a new facility that it will operate
A28: Develop a new facility that it will operate as a group of subscribers
A29: Develop a new facility, for eventual operation by a different SO
A30: Own or operate a new facility to be developed by others
A31: Other, describe:
A33: Any additional notes, including who Coordinator is, if applicable:
A35: Total MW | B35: =SUM(9:9)/1000 -> 0
A36: Total MW for bonding | B36: =ROUNDUP(B35,0) -> 0

Sheet Attachment C
A1: Subscriber Organization / Subscriber Coordinator Application for Authorization to Participate in the Community Solar Energy Generating System (“CSEGS”) Pilot Program
A3: Attachment C: Members of Subscriber Group
A4: Members of Subscriber Group must match Subscriber List provided to Electric Company
A5: Member Name | B5: Service Address | C5: City | D5: Zip | E5: Utility Account Number
A35: (Applicant should attach additional pages as needed)

Sheet Attachment D
A1: Subscriber Organization / Subscriber Coordinator Application for Authorization to Participate in the Community Solar Energy Generating System (“CSEGS”) Pilot Program
A3: Attachment D: Subscriber Coordinator List
A4: List of projects shared between Subscriber Coordinator and Subscriber Organization
A5: Shared Project Address | B5: City | C5: Zip | D5: Subscriber Organization | E5: Subscriber Organization
A35: (Applicant should attach additional pages as needed)

Sheet Key (hidden)
B2: Abbreviation | C2: Meaning | E2: County | F2: Abbreviation
B3: Select One
B4: O | C4: Open | E4: Allegany County | F4: AL
B5: LMI | C5: Low and Moderate Income | E5: Anne Arundel County | F5: AA
B6: SBO | C6: Small/Brownfield/Other | E6: Baltimore County | F6: BL
B7: K | C7: 50 kW or Less | E7: Baltimore City | F7: BC
E8: Calvert County | F8: CV
E9: Caroline County | F9: CL
E10: Carroll County | F10: CR
E11: Cecil County | F11: CC
E12: Charles County | F12: CH
E13: Dorchester County | F13: DR
C14: Ground-mounted | E14: Frederick County | F14: FR
C15: Roof-top | E15: Garrett County | F15: GR
E16: Harford County | F16: HR
B17: BGE | C17: Baltimore Gas and Electric | E17: Howard County | F17: HW
B18: DPL | C18: Delmarva Power and Light Company | E18: Kent County | F18: KN
B19: PE | C19: Potomac Edison Company | E19: Montgomery County | F19: MG
B20: Pepco | C20: Potomac Electric Power Company | E20: Prince George’s County | F20: PG
E21: Queen Anne’s County | F21: QA
C22: Owner | E22: St. Mary’s County | F22: SM
C23: Coordinator | E23: Somerset County | F23: SS
E24: Talbot County | F24: TB
C25: X | E25: Washington County | F25: WH
E26: Wicomico County | F26: WC
E27: Worcester County | F27: WR
